bitfinex/quotes_BTCUSD_20220207
["timestamp","ask_amount","ask_price","bid_price","bid_amount"]
[1644245458274,5.6121852,43444.0,43443.0,0.42]
[1644245459527,5.86900843,43444.0,43443.0,0.47]
[1644245459727,5.6121852,43444.0,43443.0,0.42]
[1644245459931,5.6121852,43444.0,43443.0,0.415]
[1644245459932,5.9376232,43444.0,43443.0,0.415]
[1644245460140,5.9376232,43444.0,43434.0,0.05]
[1644245460141,0.8,43443.0,43423.0,0.403044]
[1644245460331,0.6897527,43442.0,43423.0,0.230291]
[1644245460534,0.6897527,43442.0,43425.0,0.319401]
[1644245460535,0.28264941,43434.0,43425.0,0.319401]
[1644245460732,0.28264941,43434.0,43423.0,0.230291]
[1644245460938,0.00586884,43441.0,43430.0,0.04108351]
[1644245461131,0.8,43443.0,43435.0,0.04108351]
[1644245461132,0.01964436,43443.0,43435.0,0.04108351]
[1644245461335,0.01464436,43443.0,43435.0,0.04108351]
[1644245461531,0.01464436,43443.0,43436.0,0.05]
[1644245461732,5.6121852,43444.0,43437.0,0.04108351]
[1644245461932,5.5569852,43444.0,43435.0,0.04108351]
[1644245462133,5.1970552,43444.0,43443.0,0.09108351]
[1644245462334,3.97500105,43444.0,43443.0,0.09108351]
[1644245462633,3.62850105,43444.0,43443.0,0.05]
[1644245462881,3.28311905,43444.0,43443.0,0.05]
[1644245463082,3.28499593,43444.0,43442.0,0.16329287]
[1644245463280,2.93960893,43444.0,43442.0,0.57329287]
[1644245463481,2.93960893,43444.0,43442.0,0.62329287]
[1644245463681,2.93700893,43444.0,43442.0,0.62329287]
[1644245463980,2.59162393,43444.0,43442.0,0.53220936]
[1644245464182,2.59162393,43444.0,43443.0,0.09108351]
[1644245464384,1.61197293,43444.0,43443.0,0.34061603]
[1644245464581,0.68339045,43444.0,43443.0,0.39108351]
[1644245464783,0.68339045,43444.0,43443.0,0.319269]
[1644245464981,0.68339045,43444.0,43443.0,0.319253]
[1644245464982,0.33805745,43444.0,43443.0,0.319253]
[1644245465382,0.02547654,43445.0,43443.0,0.319253]
[1644245466287,0.02547654,43445.0,43442.0,0.07220936]
[1644245466288,0.07305297,43444.0,43442.0,0.07220936]
[1644245466485,0.07305297,43444.0,43442.0,0.01464436]
[1644245466486,0.325438,43443.0,43442.0,0.01464436]
[1644245466728,0.325438,43443.0,43426.0,0.4605]
[1644245466729,0.20704201,43434.0,43429.0,0.057591]
[1644245466929,0.06687473,43435.0,43426.0,0.0002]
[1644245466930,0.668038,43433.0,43426.0,0.0002]
[1644245467130,0.668038,43433.0,43420.0,0.3]
[1644245467131,0.36148451,43426.0,43420.0,0.3]
[1644245467425,0.0426,43425.0,43415.0,0.319489]
[1644245467626,0.0426,43425.0,43419.0,0.05]
[1644245467824,0.0426,43425.0,43423.0,0.05]
[1644245468026,0.02006,43445.0,43424.0,0.3]
[1644245468229,0.37196059,43440.0,43431.0,0.05]
[1644245468425,0.37196059,43440.0,43429.0,0.05]
[1644245468624,0.0426,43443.0,43429.0,0.08628351]
[1644245468827,0.21464662,43440.0,43436.0,0.08628351]
[1644245469024,0.21464662,43440.0,43434.0,0.23719077]
[1644245469226,0.21464662,43440.0,43434.0,0.157571]
[1644245469626,0.21464662,43440.0,43434.0,0.1]
[1644245469826,0.21464662,43440.0,43433.0,0.05]
[1644245469827,0.06758065,43436.0,43433.0,0.05]
[1644245470032,0.00199088,43444.0,43426.0,0.3]
[1644245470227,0.00199088,43444.0,43425.0,0.05]
[1644245470228,0.22090209,43441.0,43425.0,0.05]
[1644245470492,0.3426,43440.0,43425.0,0.03628351]
[1644245470690,0.0006342,43443.0,43425.0,0.03628351]
[1644245470691,0.0426,43439.0,43426.0,0.03628351]
[1644245470894,0.3426,43438.0,43430.0,0.03628351]
[1644245471091,0.24613799,43434.0,43426.0,0.01937713]
[1644245471292,0.24613799,43434.0,43425.0,0.115188]
[1644245471293,0.20337953,43433.0,43425.0,0.115188]
[1644245471499,0.20337953,43433.0,43416.0,0.115176]
[1644245471500,0.769647,43420.0,43418.0,0.319454]
[1644245471693,0.769647,43420.0,43415.0,0.230322]
[1644245471894,0.769647,43420.0,43419.0,0.08628351]
[1644245472294,0.05150681,43420.0,43419.0,0.40574651]
[1644245472493,0.00089888,43446.0,43438.0,0.03628351]
[1644245472693,0.00089888,43446.0,43445.0,0.37626203]
[1644245472891,0.00089888,43446.0,43445.0,0.08628351]
[1644245473291,0.00089888,43446.0,43445.0,0.18628351]
[1644245473494,0.00089888,43446.0,43445.0,0.13628351]
[1644245473791,0.00089888,43446.0,43445.0,0.38738305]
[1644245474131,0.001,43451.0,43445.0,0.40552251]
[1644245474132,0.20215098,43449.0,43445.0,0.40552251]
[1644245474326,0.20215098,43449.0,43447.0,0.08628351]
[1644245474726,0.20215098,43449.0,43448.0,0.057551]
[1644245475125,0.26104823,43460.0,43448.0,0.057551]
[1644245475324,0.00120936,43463.0,43451.0,0.05]
[1644245475525,0.13660388,43456.0,43454.0,0.03128351]
[1644245475727,0.00120936,43463.0,43454.0,0.08882851]
[1644245475925,0.00120936,43463.0,43457.0,0.03128351]
[1644245476127,0.30688856,43462.0,43455.0,0.057543]
[1644245476325,0.03732071,43462.0,43455.0,0.05]
[1644245476725,0.03732071,43462.0,43458.0,0.05]
[1644245476925,0.03732071,43462.0,43457.0,0.03128351]
[1644245477124,0.03732071,43462.0,43455.0,0.115092]
[1644245477326,0.03732071,43462.0,43453.0,0.01869451]
[1644245477525,0.325438,43458.0,43453.0,0.01869451]
[1644245477975,0.325438,43460.0,43453.0,0.01869451]
[1644245478175,0.36956406,43458.0,43453.0,0.01869451]
[1644245478575,0.36956406,43458.0,43453.0,0.01875451]
[1644245478780,0.36956406,43458.0,43453.0,0.01905451]
[1644245478781,0.26421154,43454.0,43453.0,0.01905451]
[1644245479177,0.26421154,43454.0,43453.0,0.00036]
[1644245479178,0.58964954,43454.0,43453.0,0.00036]
[1644245479377,0.26421154,43454.0,43453.0,0.00036]
[1644245479578,0.67815725,43454.0,43453.0,0.00036]
[1644245479781,0.63224954,43454.0,43453.0,0.00036]
[1644245479979,0.59551838,43454.0,43453.0,0.00036]
[1644245480182,0.58964954,43454.0,43453.0,0.00036]
[1644245480379,0.325438,43454.0,43453.0,0.00036]
[1644245480579,0.368038,43454.0,43453.0,0.00036]
[1644245480983,0.00019054,43456.0,43453.0,0.00036]
[1644245481185,0.31922981,43454.0,43453.0,0.00036]
[1644245481384,0.31861671,43454.0,43453.0,0.00036]
[1644245481831,0.00019054,43456.0,43453.0,0.00036]
[1644245482032,0.07808112,43454.0,43453.0,0.00036]
[1644245482231,0.07808112,43454.0,43445.0,0.0002]
[1644245482434,0.3,43453.0,43445.0,0.0002]
[1644245482631,0.368038,43452.0,43445.0,0.0002]
[1644245482932,0.368038,43452.0,43443.0,0.0002]
[1644245482933,0.0426,43451.0,43443.0,0.0002]
[1644245483131,0.0426,43451.0,43446.0,0.05]
[1644245483332,0.0426,43451.0,43443.0,0.0002]
[1644245483531,0.0426,43451.0,43442.0,0.2902]
[1644245483532,0.0006273,43450.0,43442.0,0.2902]
[1644245483731,0.0006273,43450.0,43443.0,0.31925]
[1644245484033,0.0006273,43450.0,43441.0,0.04806689]
[1644245484034,0.08632051,43444.0,43441.0,0.04806689]
[1644245484231,0.0006273,43450.0,43442.0,0.319257]
[1644245484431,0.0426,43451.0,43443.0,0.31925]
[1644245484432,0.26838897,43446.0,43443.0,0.31925]
[1644245484632,0.01449656,43461.0,43445.0,0.05]
[1644245484633,0.30013031,43461.0,43445.0,0.05]
[1644245484832,0.30013031,43461.0,43444.0,0.29169611]
[1644245484833,0.00949656,43461.0,43450.0,0.07628351]
[1644245485481,0.00449656,43461.0,43450.0,0.07628351]
[1644245485683,0.24834904,43458.0,43450.0,0.07628351]
[1644245485884,0.00449656,43461.0,43444.0,0.115104]
[1644245486083,0.00449656,43461.0,43442.0,0.01875155]
[1644245486084,0.325438,43460.0,43442.0,0.01875155]
[1644245486281,0.0426,43460.0,43446.0,0.05]
[1644245486480,0.0426,43460.0,43448.0,0.25087829]
[1644245486881,0.21558261,43453.0,43446.0,0.04515184]
[1644245487083,0.0326337,43453.0,43446.0,0.01886833]
[1644245487283,0.0276337,43453.0,43446.0,0.01886833]
[1644245487482,0.0276337,43453.0,43447.0,0.23016]
[1644245487782,0.00062625,43456.0,43447.0,0.23016]
[1644245487984,0.0426,43459.0,43447.0,0.23016]
[1644245488282,0.00062625,43454.0,43447.0,0.23016]
[1644245488481,0.00062625,43454.0,43450.0,0.07628351]
[1644245488782,0.00062625,43454.0,43451.0,0.35771]
[1644245488982,0.22762806,43456.0,43451.0,0.35771]
[1644245488983,0.0712969,43456.0,43451.0,0.35771]
[1644245489257,0.0712969,43456.0,43447.0,0.01856999]
[1644245489258,0.625438,43455.0,43447.0,0.01856999]
[1644245489447,0.668038,43455.0,43447.0,0.01856999]
[1644245489643,0.0426,43455.0,43447.0,0.01856999]
[1644245489843,0.19661919,43448.0,43443.0,0.02628351]
[1644245490043,0.0426,43455.0,43446.0,0.05]
[1644245490244,0.0426,43455.0,43434.0,0.33293887]
[1644245490245,0.34979764,43459.0,43450.0,0.05]
[1644245490845,0.34979764,43459.0,43447.0,0.00054332]
[1644245491046,0.34979764,43459.0,43447.0,0.02061969]
[1644245491247,0.34979764,43459.0,43447.0,0.24716045]
[1644245491646,0.34979764,43459.0,43447.0,0.29661713]
[1644245491849,0.00062527,43456.0,43447.0,0.29734789]
[1644245492048,0.00062527,43456.0,43447.0,0.07080713]
[1644245492446,0.00062527,43456.0,43447.0,0.02080713]
[1644245492877,0.23029892,43458.0,43447.0,0.07007637]
[1644245493076,0.23029892,43458.0,43447.0,0.09663726]
[1644245493077,0.00062525,43456.0,43447.0,0.09663726]
[1644245493878,0.00062525,43456.0,43451.0,0.02628351]
[1644245494077,0.00449656,43461.0,43451.0,0.02628351]
[1644245494278,0.00062525,43456.0,43451.0,0.02628351]
[1644245494482,0.00062525,43456.0,43453.0,0.02628351]
[1644245494676,0.00449656,43461.0,43452.0,0.05]
[1644245494878,0.00449656,43461.0,43450.0,0.31651156]
[1644245495076,0.00449656,43461.0,43451.0,0.02138661]
[1644245495282,0.30449656,43461.0,43451.0,0.02138661]
[1644245495477,0.00449656,43461.0,43451.0,0.07138661]
[1644245495677,0.30449656,43461.0,43451.0,0.02138661]
[1644245495882,0.30449656,43461.0,43447.0,0.02628351]
[1644245496083,0.00349656,43461.0,43451.0,0.05]
[1644245496279,0.00349656,43461.0,43451.0,0.1]
[1644245496478,0.00349656,43461.0,43449.0,0.05]
[1644245496734,0.03427073,43462.0,43450.0,0.4]
[1644245496935,0.27645306,43457.0,43451.0,0.04527984]
[1644245497139,0.27645306,43457.0,43451.0,0.01899633]
[1644245497140,0.20895306,43457.0,43451.0,0.01899633]
[1644245497335,0.20895306,43457.0,43451.0,0.04527984]
[1644245497535,0.0426,43458.0,43451.0,0.04527984]
[1644245497734,0.07172896,43452.0,43451.0,0.04527984]
[1644245497937,0.07172896,43452.0,43451.0,0.01899633]
[1644245497938,0.58013385,43452.0,43451.0,0.01899633]
[1644245498139,0.64817185,43452.0,43451.0,0.01899633]
[1644245498540,0.97418882,43452.0,43451.0,0.01899633]
[1644245499338,0.325438,43451.0,43449.0,0.00054666]
[1644245499840,0.64875082,43452.0,43449.0,0.00054666]
[1644245500039,0.64875082,43452.0,43447.0,0.01940558]
[1644245500240,0.64875082,43452.0,43448.0,0.00054667]
[1644245500479,0.64875082,43452.0,43431.0,0.02628351]
[1644245500480,1.125438,43451.0,43431.0,0.02628351]
[1644245500692,0.05,43447.0,43437.0,0.0884]
[1644245500883,0.05,43447.0,43420.0,0.24351413]
[1644245500884,0.08084426,43421.0,43419.0,0.13267]
[1644245501080,0.3,43445.0,43439.0,0.01856384]
[1644245501281,0.3,43445.0,43420.0,0.2303]
[1644245501282,1.125438,43444.0,43420.0,0.2303]
[1644245501487,0.22144887,43421.0,43420.0,0.2303]
[1644245501683,0.22144887,43421.0,43411.0,0.21331913]
[1644245501684,0.5,43420.0,43411.0,0.21331913]
[1644245501984,0.5,43420.0,43401.0,0.2119458]
[1644245501985,0.02371649,43418.0,43401.0,0.2119458]
[1644245502194,0.08916864,43405.0,43402.0,0.2304]
[1644245502382,0.08916864,43405.0,43392.0,2.96440382]
[1644245502383,1.1426,43404.0,43392.0,2.96440382]
[1644245502581,1.1426,43404.0,43392.0,2.47919382]
[1644245502582,0.21520553,43393.0,43392.0,2.47919382]
[1644245502783,0.046,43417.0,43398.0,0.02628351]
[1644245503082,0.046,43417.0,43391.0,0.02]
[1644245503083,0.0426,43412.0,43399.0,0.05]
[1644245503381,0.05,43410.0,43397.0,0.26705313]
[1644245503580,0.0426,43409.0,43402.0,0.05]
[1644245503780,0.25047193,43406.0,43402.0,0.05]
[1644245504231,0.0426,43405.0,43401.0,0.00054774]
[1644245504431,0.325269,43404.0,43401.0,0.00054774]
[1644245504631,0.25047193,43406.0,43401.0,0.00054774]
[1644245504834,0.0426,43409.0,43398.0,0.3]
[1644245505032,0.0426,43409.0,43401.0,0.00073509]
[1644245505430,0.0426,43409.0,43397.0,0.26278822]
[1644245505831,0.0264,43409.0,43397.0,0.26278822]
[1644245506030,0.07000412,43406.0,43397.0,0.26278822]
[1644245506332,0.07000412,43406.0,43396.0,0.38848]
[1644245506333,0.20923528,43398.0,43396.0,0.08848]
[1644245506532,0.0426,43405.0,43396.0,0.08848]
[1644245506732,0.0426,43404.0,43396.0,0.08848]
[1644245506932,0.0926,43404.0,43396.0,0.08848]
[1644245507337,0.0926,43404.0,43402.0,0.30972984]
[1644245507534,0.0926,43404.0,43403.0,0.3]
[1644245507535,0.0426,43404.0,43403.0,0.3]
[1644245507734,0.01827995,43406.0,43403.0,0.3]
[1644245507982,0.01827995,43406.0,43405.0,0.05]
[1644245508581,0.01827995,43406.0,43396.0,0.13848]
[1644245508582,0.09921684,43406.0,43396.0,0.13848]
[1644245508783,0.09921684,43406.0,43399.0,0.05]
[1644245508784,0.05,43405.0,43399.0,0.05]
[1644245508982,0.09921684,43406.0,43399.0,0.05]
[1644245509181,0.08093689,43406.0,43399.0,0.05]
[1644245509385,0.08093689,43406.0,43401.0,0.05]
[1644245509782,0.08093689,43406.0,43399.0,0.02628351]
[1644245510185,0.33912076,43412.0,43403.0,0.07628351]
[1644245510384,0.33912076,43412.0,43403.0,0.07128351]
[1644245510586,0.33912076,43412.0,43403.0,0.12128351]
[1644245510784,0.24244005,43405.0,43403.0,0.12128351]
[1644245511626,0.24244005,43405.0,43403.0,0.07128351]
[1644245511828,0.24244005,43405.0,43401.0,0.05]
[1644245512027,0.24244005,43405.0,43400.0,0.13847]
[1644245512227,0.05,43413.0,43402.0,0.08847]
[1644245512429,0.02392216,43414.0,43410.0,0.05]
[1644245512633,0.02392216,43414.0,43413.0,0.07128351]
[1644245513026,0.01892216,43414.0,43413.0,0.05]
[1644245513229,0.00251714,43414.0,43413.0,0.07128351]
[1644245513528,0.25409045,43415.0,43413.0,0.05]
[1644245513529,0.32120227,43415.0,43413.0,0.05]
[1644245513926,0.25409045,43415.0,43404.0,0.3]
[1644245514127,0.25409045,43415.0,43412.0,0.05]
[1644245514328,0.25409045,43415.0,43403.0,0.3]
[1644245514728,0.05,43413.0,43402.0,0.08847]
[1644245515132,0.08399867,43411.0,43402.0,0.08847]
[1644245515385,0.24351783,43403.0,43402.0,0.08847]
[1644245515578,0.08399867,43411.0,43402.0,0.08847]
[1644245515778,0.07952073,43404.0,43402.0,0.08847]
[1644245516377,0.05,43413.0,43403.0,0.35]
[1644245516581,0.00252135,43414.0,43413.0,0.02128351]
[1644245516980,0.00252135,43414.0,43412.0,0.05]
[1644245516981,0.26077081,43414.0,43412.0,0.05]
[1644245517180,0.26077081,43414.0,43409.0,0.07128351]
[1644245517378,0.06866888,43410.0,43409.0,0.07128351]
[1644245517980,0.26077081,43414.0,43409.0,0.07128351]
[1644245518380,0.26077081,43414.0,43403.0,0.01854312]
[1644245518381,0.26077081,43414.0,43411.0,0.05]
[1644245518579,0.26077081,43414.0,43411.0,0.07128351]
[1644245518783,0.26077081,43414.0,43411.0,0.06628351]
[1644245519131,0.0742231,43413.0,43411.0,0.06628351]
[1644245520437,0.0742231,43413.0,43412.0,0.27814725]
[1644245520633,0.0742231,43413.0,43411.0,0.06628351]
[1644245522340,0.0742231,43413.0,43403.0,0.07158165]
[1644245522537,0.35399088,43412.0,43403.0,0.07158165]
[1644245522735,0.39659088,43412.0,43403.0,0.07158165]
[1644245523185,0.34751958,43410.0,43403.0,0.05]
[1644245523381,0.20794651,43404.0,43403.0,0.05]
[1644245523580,0.29417233,43404.0,43403.0,0.05]
[1644245524681,0.29417233,43404.0,43399.0,0.01987542]
[1644245524682,0.12756702,43400.0,43399.0,0.01987542]
[1644245525381,0.12756702,43400.0,43394.0,0.02057552]
[1644245525582,0.08000369,43396.0,43394.0,0.02057552]
[1644245526186,0.08000369,43396.0,43383.0,0.2955908]
[1644245526187,0.8,43394.0,43381.0,0.02]
[1644245526384,0.05,43391.0,43381.0,0.10851]
[1644245526635,0.0426,43393.0,43381.0,0.10851]
[1644245526837,0.0426,43393.0,43385.0,0.00068877]
[1644245527436,0.07668397,43386.0,43385.0,0.00068877]
[1644245527835,0.07668397,43386.0,43381.0,0.02]
[1644245528137,0.07668397,43386.0,43383.0,0.00068906]
[1644245528534,0.0426,43393.0,43383.0,0.00068906]
[1644245529035,0.0426,43393.0,43381.0,0.01568906]
[1644245529234,0.0426,43393.0,43386.0,0.25514266]
[1644245529435,0.05,43391.0,43386.0,0.00050114]
[1644245529634,0.06473465,43392.0,43386.0,0.00050114]
[1644245530235,0.02618403,43394.0,43384.0,0.20931302]
[1644245530484,0.02558403,43394.0,43387.0,0.34531572]
[1644245530693,0.02057552,43395.0,43388.0,0.3]
[1644245530881,0.02057552,43395.0,43388.0,0.3426]
[1644245531081,0.02057552,43395.0,43388.0,0.4426]
[1644245531284,0.02057552,43395.0,43389.0,0.18992898]
[1644245531481,0.02057552,43395.0,43390.0,0.0426]
[1644245531682,0.02057552,43395.0,43391.0,0.3]
[1644245531883,0.29206715,43413.0,43391.0,0.3]
[1644245531884,0.05762499,43420.0,43401.0,0.05]
[1644245532086,0.14084676,43426.0,43407.0,0.26867934]
[1644245532284,0.34131585,43420.0,43407.0,0.05]
[1644245532483,0.34131585,43420.0,43402.0,0.0426]
[1644245532484,0.07920314,43413.0,43402.0,0.0426]
[1644245532684,0.05,43408.0,43402.0,0.0426]
[1644245532882,0.05,43408.0,43394.0,0.02057552]
[1644245532883,0.0646822,43400.0,43395.0,0.0426]
[1644245533083,0.1979822,43400.0,43395.0,0.0426]
[1644245533287,0.1979822,43400.0,43394.0,0.02057552]
[1644245533288,0.2479822,43400.0,43394.0,0.02057552]
[1644245533485,0.43213981,43395.0,43383.0,0.05]
[1644245533684,0.43213981,43395.0,43382.0,0.4994]
[1644245533685,0.05,43387.0,43381.0,0.01568906]
[1644245533884,0.3,43394.0,43381.0,0.01568906]
[1644245534131,0.39771533,43395.0,43381.0,0.01568906]
[1644245534331,0.01557552,43395.0,43381.0,0.01568906]
[1644245534633,0.01557552,43395.0,43383.0,0.20668156]
[1644245535031,0.0698212,43394.0,43383.0,0.20668156]
[1644245535230,0.0698212,43394.0,43381.0,0.01568906]
[1644245535231,0.38030415,43393.0,43387.0,0.00073889]
[1644245535434,0.05,43388.0,43387.0,0.00073889]
[1644245535732,0.375269,43388.0,43387.0,0.00073889]
[1644245535934,0.05,43388.0,43387.0,0.00073889]
[1644245536131,0.33583224,43393.0,43387.0,0.00073889]
[1644245536331,0.31581085,43386.0,43381.0,0.01568906]
[1644245536531,0.08604191,43386.0,43385.0,0.00073891]
[1644245536732,0.30443583,43391.0,43385.0,0.00073891]
[1644245537335,0.05,43387.0,43385.0,0.00073891]
[1644245537534,0.05,43387.0,43381.0,0.01568906]
[1644245537734,0.08759107,43373.0,43372.0,0.01973597]
[1644245537992,0.13759107,43373.0,43372.0,0.01973597]
[1644245538194,0.08759107,43373.0,43372.0,0.01973597]
[1644245538694,0.05,43377.0,43372.0,0.01973597]
[1644245539390,0.20388191,43379.0,43372.0,0.01973597]
[1644245539391,0.05,43373.0,43372.0,0.01973597]
[1644245539592,0.0771518,43373.0,43372.0,0.01973597]
[1644245539992,0.0771518,43373.0,43367.0,0.23139884]
[1644245540792,0.0771518,43373.0,43364.0,0.20116029]
[1644245540992,0.0771518,43373.0,43361.0,0.02]
[1644245541197,0.0771518,43373.0,43370.0,0.00054946]
[1644245541630,0.78664159,43380.0,43372.0,0.8]
[1644245541833,0.0058,43738.0,43379.0,0.05]
[1644245541834,0.05766,43397.0,43379.0,0.05]
[1644245542136,0.19707305,43410.0,43396.0,0.05]
[1644245542334,0.44310333,43415.0,43402.0,0.05]
[1644245542531,0.45,43412.0,43403.0,0.0426]
[1644245542731,3.19707305,43416.0,43404.0,0.0426]
[1644245542732,0.21982767,43415.0,43404.0,0.0426]
[1644245542931,0.21982767,43415.0,43397.0,0.05]
[1644245542932,0.21982767,43415.0,43405.0,0.0426]
[1644245543133,3.0,43416.0,43402.0,0.0426]
[1644245543331,3.05,43416.0,43398.0,0.35]
[1644245543531,3.0,43416.0,43398.0,0.35]
[1644245543833,3.0,43416.0,43398.0,0.4]
[1644245543834,0.05,43412.0,43398.0,0.4]
[1644245544032,3.0,43416.0,43400.0,0.057621]
[1644245544233,3.0,43416.0,43411.0,0.25938108]
[1644245544436,3.0,43416.0,43412.0,0.0426]
[1644245544833,0.05,43413.0,43412.0,0.0426]
[1644245545135,0.05,43413.0,43399.0,0.05762]
[1644245545407,0.24979606,43415.0,43400.0,0.27721734]
[1644245545408,0.05,43414.0,43400.0,0.27721734]
[1644245545596,0.05,43414.0,43400.0,0.32721734]
[1644245545597,0.29804371,43413.0,43400.0,0.32721734]
[1644245545995,0.29804371,43413.0,43401.0,0.26008663]
[1644245546196,0.29804371,43413.0,43402.0,0.0426]
[1644245546399,0.20172712,43407.0,43402.0,0.0426]
[1644245547299,0.07791894,43411.0,43402.0,0.0426]
[1644245547501,0.08246454,43404.0,43402.0,0.0426]
[1644245547897,0.00063124,43407.0,43402.0,0.0426]
[1644245548099,0.00063124,43407.0,43403.0,0.29107351]
[1644245548297,0.30056831,43413.0,43403.0,0.39107351]
[1644245548298,0.26489516,43409.0,43403.0,0.39107351]
[1644245548498,0.00018937,43407.0,43403.0,0.39107351]
[1644245548700,0.00018937,43407.0,43404.0,0.0426]
[1644245549004,0.00018937,43407.0,43404.0,2.45558874]
[1644245549639,0.077953,43410.0,43404.0,2.45558874]
[1644245549836,0.00063124,43408.0,43405.0,0.25453491]
[1644245550035,0.00063124,43408.0,43406.0,0.0426]
[1644245550036,0.05063124,43408.0,43406.0,0.0426]
[1644245550237,0.00063124,43408.0,43407.0,0.0426]
[1644245550835,0.077953,43410.0,43407.0,0.0426]
[1644245551239,0.08986797,43408.0,43407.0,0.0426]
[1644245551438,0.08986797,43408.0,43404.0,0.02117709]
[1644245551439,0.40064764,43408.0,43404.0,0.02117709]
[1644245551644,0.8,43404.0,43385.0,0.230474]
[1644245551837,0.8,43404.0,43389.0,0.1]
[1644245551838,0.3,43403.0,43389.0,0.1]
[1644245552036,0.1,43394.0,43389.0,0.1]
[1644245552241,0.1,43394.0,43392.0,0.23780687]
[1644245552242,0.11,43394.0,43392.0,0.23780687]
[1644245553093,0.11,43394.0,43393.0,0.0426]
[1644245553094,0.0001,43394.0,43393.0,0.0426]
[1644245553287,4e-05,43394.0,43393.0,0.0426]
[1644245554387,4e-05,43394.0,43393.0,0.51999962]
[1644245554587,4e-05,43394.0,43393.0,0.0426]
[1644245555588,4e-05,43394.0,43393.0,0.27306499]
[1644245555786,4e-05,43394.0,43392.0,0.107624]
[1644245555988,4e-05,43394.0,43392.0,0.057624]
[1644245556191,4e-05,43394.0,43392.0,0.100224]
[1644245556388,4e-05,43394.0,43392.0,0.150224]
[1644245556843,4e-05,43394.0,43393.0,0.21837397]
[1644245557046,4e-05,43394.0,43392.0,0.150224]
[1644245558839,0.08380269,43403.0,43392.0,0.150224]
[1644245559041,0.016234,43403.0,43400.0,0.22684649]
[1644245559443,0.01949185,43403.0,43400.0,0.22684649]
[1644245560241,0.01949185,43403.0,43395.0,0.165237]
[1644245560683,0.01949185,43403.0,43397.0,0.2536339]
[1644245560887,0.01949185,43403.0,43398.0,0.057618]
[1644245561084,0.01949185,43403.0,43398.0,0.100218]
[1644245561385,0.00062971,43404.0,43398.0,0.100218]
[1644245561689,0.08047148,43410.0,43393.0,0.01544214]
[1644245561690,0.29645801,43401.0,43393.0,0.01544214]
[1644245561885,0.05,43394.0,43393.0,0.01544214]
[1644245562187,0.24645801,43401.0,43393.0,0.01544214]
[1644245562188,0.30715805,43400.0,43393.0,0.01544214]
[1644245562385,0.29645801,43401.0,43393.0,0.01544214]
[1644245562685,0.28383594,43400.0,43393.0,0.01544214]
[1644245562997,0.28383594,43400.0,43384.0,0.00069386]
[1644245562998,0.25894972,43394.0,43384.0,0.00069386]
[1644245563187,0.01544214,43394.0,43384.0,0.02018343]
[1644245563387,0.00797444,43394.0,43384.0,0.02018343]
[1644245563786,0.11797444,43394.0,43384.0,0.02018343]
[1644245563986,0.11797444,43394.0,43386.0,0.057631]
[1644245564232,0.11797444,43394.0,43391.0,0.23047534]
[1644245564432,9.65e-06,43396.0,43392.0,0.8]
[1644245564737,3.12e-06,43403.0,43394.0,1.04222239]
[1644245564930,3.12e-06,43403.0,43402.0,0.0192]
[1644245565130,3.12e-06,43403.0,43402.0,0.0618]
[1644245566729,3.12e-06,43403.0,43402.0,0.35600425]
[1644245566931,3.12e-06,43403.0,43402.0,0.45600425]
[1644245567131,3.12e-06,43403.0,43402.0,0.35600425]
[1644245567532,0.05,43409.0,43404.0,0.057615]
[1644245567732,0.05,43409.0,43404.0,0.115231]
[1644245567985,0.05,43409.0,43404.0,0.165231]
[1644245568185,0.077953,43410.0,43405.0,0.057614]
[1644245568386,0.077953,43410.0,43405.0,0.107614]
[1644245568786,0.077953,43410.0,43409.0,0.19731167]
[1644245568985,0.077953,43410.0,43409.0,0.25492067]
[1644245569183,0.07857484,43410.0,43409.0,0.30492067]
[1644245569783,0.07857484,43410.0,43409.0,0.107609]
[1644245570186,0.127953,43410.0,43409.0,0.107609]
[1644245571838,0.127953,43410.0,43409.0,0.35808018]
[1644245572238,0.127953,43410.0,43409.0,0.107609]
[1644245572541,0.107953,43410.0,43409.0,0.107609]
[1644245572938,0.00062184,43412.0,43409.0,0.107609]
[1644245572939,0.00062184,43412.0,43410.0,0.857598]
[1644245573137,0.00062184,43412.0,43411.0,0.34813457]
[1644245573338,0.00062184,43412.0,43411.0,0.0926]
[1644245573543,0.00062184,43412.0,43407.0,0.172792]
[1644245573544,0.21238866,43408.0,43407.0,0.172792]
[1644245573744,0.3,43408.0,43402.0,0.172809]
[1644245573944,0.8,43411.0,43395.0,0.3]
[1644245574142,0.8,43411.0,43399.0,0.05]
[1644245574341,0.08905655,43414.0,43394.0,0.115239]
[1644245574539,0.08905655,43414.0,43404.0,0.25399811]
[1644245574741,0.08905655,43414.0,43411.0,0.25725842]
[1644245574942,0.08887,43414.0,43411.0,0.25725842]
[1644245575143,0.08887,43414.0,43411.0,0.30725842]
[1644245575393,0.08887,43414.0,43411.0,0.35725842]
[1644245575585,0.08887,43414.0,43412.0,0.24055298]
[1644245575785,0.08887,43414.0,43412.0,0.29055215]
[1644245576185,3.0,43416.0,43412.0,0.29055215]
[1644245576385,3.0,43416.0,43415.0,0.05]
[1644245577390,3.07995979,43416.0,43413.0,0.100195]
[1644245577594,3.07206029,43416.0,43412.0,0.115184]
[1644245577793,2.9921005,43416.0,43412.0,0.115184]
[1644245578190,2.9921005,43416.0,43411.0,0.057601]
[1644245578590,2.9921005,43416.0,43415.0,0.20030757]
[1644245578792,2.99272129,43416.0,43411.0,0.057601]
[1644245579238,2.99272129,43416.0,43412.0,0.057608]
[1644245579436,0.07205485,43415.0,43412.0,0.057608]
[1644245579635,0.07205485,43415.0,43407.0,0.0152]
[1644245579837,0.0426,43414.0,43408.0,0.24863652]
[1644245580036,0.0426,43414.0,43407.0,0.0152]
[1644245580037,2.9921005,43416.0,43410.0,0.05761]
[1644245580235,2.9921005,43416.0,43411.0,0.057601]
[1644245580438,2.9921005,43416.0,43411.0,0.115204]
[1644245580736,2.9921005,43416.0,43411.0,0.23041]
[1644245581136,0.0691238,43415.0,43411.0,0.172807]
[1644245581535,0.0691238,43415.0,43411.0,0.272807]
[1644245582235,2.9921005,43416.0,43411.0,0.272807]
[1644245582438,0.00061554,43415.0,43411.0,0.272807]
[1644245582904,0.29481236,43415.0,43411.0,0.272807]